{"text_format":"1","workbook":"xlsx","n_sheets":8,"sheets":["CONTROL","Instructions (Eng)","Instructions (Fren)","FB 111 (Bus Driver)","FB111S Summary","FB111S Certification","DATA","Routes"],"not_rendered":{"charts":0,"images":0,"macros":1,"external_links":2,"defined_names":54,"comments":0,"pivot_tables":0},"unopened":[],"bounds":{"document_bytes":16777216,"sheet_cells":100000,"rows_first":2000,"rows_last":500,"rows_between":2000,"halvings":0,"cell_chars":16384,"cell_head_chars":4096},"cells_cut":0,"cells_raw":0,"read":"whole","date_system":"1900"}

{"sheet":"CONTROL","index":0,"n_rows":8,"n_cols":14,"rows_kept":8,"cut":false,"hidden":false,"merged":[[7,1,7,3],[6,1,6,3],[0,1,0,3],[1,1,1,3],[2,1,2,3],[4,1,4,3]]}
[null,null,null,null,null,null,null,null,null,null,null,null,"ENGLISH",1]
[null,"FB 111 Series - Bus Routes",null,null,null,null,null,null,null,null,null,null,"FRENCH"]
[null,{"$f":"IF(lang=1,M3,N3)","v":"To use these forms in Excel, select your School Division name from the drop down list below (names are in alphabetical order) and the language:"},null,null,null,null,null,null,null,null,null,null,"To use these forms in Excel, select your School Division name from the drop down list below (names are in alphabetical order) and the language:","Pour personnaliser ces formulaires pour votre division ou district scolaire, cliquez sur la flèche descendante et sélectionnez le nom de votre division ou district scolaire dans la liste déroulante (la liste est en ordre alphabétique) :"]
[]
[null,{"$f":"IF(lang=1,M5,N5)","v":"If necessary, select the appropriate reporting year below:"},null,null,null,null,null,null,null,null,null,null,"If necessary, select the appropriate reporting year below:","Pour mettre à jour ce formulaire dans l’avenir, sélectionnez une nouvelle date de rapport dans la liste déroulante ci-dessous :"]
[]
[null,{"$f":"IF(lang=1,M7,N7)","v":"The above settings will be saved when you save the file, but they can be changed again - e.g. to use this file next year, just select a new reporting year."},null,null,null,null,null,null,null,null,null,null,"The above settings will be saved when you save the file, but they can be changed again - e.g. to use this file next year, just select a new reporting year.","Les paramètres ci-dessus seront préservés lorsque vous enregistrez le fichier."]
[null,{"$f":"IF(lang=1,M8,N8)","v":"Please review the instructions for the completion and submission of forms on the worksheet named \"Instructions\". "},null,null,null,null,null,null,null,null,null,null,"Please review the instructions for the completion and submission of forms on the worksheet named \"Instructions\". ","Veuillez consulter les instructions pour l'achèvement et la soumission des formulaires sur la feuille de calcul intitulée «Instructions»."]

{"sheet":"Instructions (Eng)","index":1,"n_rows":113,"n_cols":3,"rows_kept":113,"cut":false,"hidden":false,"merged":[[88,1,91,2],[104,1,104,2],[106,1,108,2],[67,1,67,2],[68,1,69,2],[56,1,58,2],[59,1,59,2],[86,1,86,2],[0,0,0,2],[3,1,5,2],[6,1,8,2],[61,1,61,2],[63,1,65,2],[33,1,35,2],[38,1,38,2],[41,1,43,2],[52,1,54,2],[9,1,11,2],[12,1,14,2],[22,1,24,2],[27,1,29,2]]}
["FB 111 SERIES - BUS ROUTES"]
[]
[null,"DESCRIPTION"]
[null,"The FB 111 series of bus route forms and summaries are used to compile, report and certify data used in the calculation of Loaded Kilometre Support and Bus Grant Support. "]
[]
[]
[null,"Loaded Kilometres means the daily distance in kilometres for each school bus route operated by a school division on September 30 of the school year:"]
[]
[]
[null,"from the point where the first transported pupils are picked up on the way to school to the last point to which pupils are transported, and"]
[]
[]
[null,"from the point where the first transported pupils are picked up after school to the point where the last transported pupils are dropped off."]
[]
[]
[]
[null,"BUS ROUTE DESCRIPTIONS:"]
[]
[null,"URBAN OR RURAL ROUTE"]
[null,"A route that picks up pupils in a rural area and transports them to an urban area is considered a rural route."]
[]
[null,"REGULAR TWO-WAY ROUTE"]
[null,"A route that follows the same, or very similar, path both before and after school. Report the total and loaded kilometres for the A.M. portion only and multiply by two (2)."]
[]
[]
[]
[null,"ONE-WAY ROUTE (A.M. or P.M.)"]
[null,"A route that does not follow the same path both before and after school.  Report the total and loaded kilometres and multiply by one (1). "]
[]
[]
[]
[null,"EXAMPLES OF ROUTES:"]
[null,"1) REGULAR ROUTE"]
[null,"If the bus remains loaded from the first pick-up point to the last drop-off point in the A.M. and follows the same route after school"]
[]
[]
[]
[null,"2) ONE-WAY ROUTE (A.M. or P.M.)"]
[null,"If the bus remains loaded from the first pick-up to the last drop-off point but operates only once a day. "]
[]
[null,"3) REGULAR ROUTE OR ONE-WAY ROUTE"]
[null,"If the bus picks up and drops off pupils on route to one or more schools but travels unloaded for a portion of the route, each portion is a different route, either as in example 1) or 2)."]
[]
[]
[]
[null,"EXAMPLES OF ROUTES THAT ARE NOT ELIGIBLE FOR SUPPORT:"]
[null,"● Field or day trip routes;"]
[null,"● Technology education routes during the school day (excluding Manitoba Institute of Trades and Technology"]
[null,"    partner divisions),"]
[null,"● Routes to other schools during the school day for a program not offered at the home school."]
[]
[null,"INSTRUCTIONS"]
[null,"To access the forms in this file, click on the tab with the corresponding form number.  If you are completing the forms electronically, please ensure that you save the file from which the hardcopy is printed. "]
[]
[]
[]
[null,"Further details to assist school divisions in meeting the requirements for the reporting of categorical grant data and information is available in the Public Schools Enrolment and Categorical Grants Reporting booklet available on the Internet at:    "]
[]
[]
[null,"http://www.edu.gov.mb.ca/k12/finance/forms/public/index.html"]
[]
[null,"FB 111 - Bus Route Report"]
[null,"Reporting Date: September 30th"]
[null,"The FB 111 form is used by school bus drivers for reporting data for each eligible bus route on September 30th in order to complete the FB 111S - Bus Route Summary file. Data collected includes odometer readings and bus route descriptions."]
[]
[]
[]
[null,"The FB 111 form is for divisional use only and should not be returned to the Education Funding Branch.  "]
[null,"Complete one form for every bus route regardless of distance traveled. Report distance in kilometres."]
[]
[]
[null,"Enter the following information on the form:"]
[null,"● Division Name (use Control worksheet)"]
[null,"● Bus Route No."]
[null,"● Bus Unit No."]
[]
[null,"The bus driver must complete the following and sign:"]
[null,"● Odometer start"]
[null,"● Odometer first pick up"]
[null,"● Odometer last drop off"]
[null,"● Odometer finish"]
[]
[null,"The transportation supervisor must complete the following and sign:"]
[null,"● Bus Route Description (Check Urban or Rural and Regular Two-Way, One-Way A.M./ One-Way P.M.)"]
[null,"● Total and loaded kilometre calculation (multiply by 1 for one-way and 2 for two-way)"]
[]
[null,"FB 111S - Bus Route Summary"]
[null,"Reporting Date: September 30th","Due Date: October 15th"]
[null,"Bus route data collected on the FB 111 forms is summarized in the FB 111S – Bus Route Summary file. This data is used in the preliminary calculation of loaded kilometre support. The total number of buses reporting ridership for approved rural routes is also reported in the FB 111S file and used for the calculation of Bus Grant Support. "]
[]
[]
[]
[]
[null,"Enter the following information for each bus route on the summary:"]
[null,"● Bus Route Number"]
[null,"● Bus Unit Number "]
[null,"● Check Kindergarten Route (if applicable)"]
[null,"● Check Urban or Rural"]
[null,"● Check One-Way or Two-Way"]
[null,"● Enter total and loaded kilometres as reported on form FB 111 - Bus Route Report.  "]
[null,"   Rural loaded kilometres will be displayed automatically, where applicable. "]
[]
[null,"Print the completed FB 111S and submit hardcopy and electronic file to Education Funding Branch."]
[]
[null,"FB 111S CERT - Certification of the Bus Route Summary "]
[null,"Reporting Date: September 30th","Due Date: October 15th"]
[null,"The FB 111S CERT form is used to certify information reported in the FB 111S file and is up-dated automatically from the FB 111S."]
[]
[]
[]
[null,"Print the certification form and verify the totals to the FB 111S."]
[null,"Provide appropriate dates and signatures."]
[null,"Submit to the Education Funding Branch via email:","efb@gov.mb.ca"]

{"sheet":"Instructions (Fren)","index":2,"n_rows":118,"n_cols":4,"rows_kept":118,"cut":false,"hidden":false,"merged":[[26,2,26,3],[0,1,0,3],[2,1,2,3],[3,2,4,3],[6,2,6,3],[8,2,10,3],[11,2,11,3],[13,2,15,3],[16,2,18,3],[19,2,20,3],[21,2,22,3],[94,2,94,3],[53,2,53,3],[27,2,27,3],[29,2,29,3],[30,2,31,3],[33,2,33,3],[34,2,35,3],[39,2,39,3],[40,2,41,3],[43,2,43,3],[44,2,44,3],[46,2,46,3],[47,2,48,3],[69,2,70,3],[84,2,84,3],[85,2,85,3],[87,2,87,3],[89,2,92,3],[54,2,54,3],[57,2,60,3],[62,2,62,3],[64,2,66,3],[68,2,68,3],[103,2,103,3],[105,2,105,3],[107,2,107,3],[109,2,111,3],[100,2,100,3]]}
[null,"SÉRIE FB 111 - ITINÉRAIRES D'AUTOBUS"]
[]
[null,"DATES DE COMMUNICATION DES RAPPORTS ET RENSEIGNEMENTS"]
[null,null,"Lorsque la date de communication du rapport tombe une fin de semaine ou un jour férié, la date de communication est le dernier jour d'école qui précède la fin de semaine ou le jour férié."]
[]
[]
[null,null,"Lorsque la date d'échéance tombe une fin de semaine ou un jour férié, la date d'échéance est le dernier jour ouvrable qui précède la fin de semaine ou le jour férié."]
[]
[null,null,"Les dates de communication réelles pour l'année scolaire en cours (Annexe E) ainsi que d'autres renseignements servant à aider les divisions scolaires à répondre aux exigences relatives à la communication des données sur les subventions par catégorie et des pièces justificatives sont compris dans le document Communication des données sur les inscriptions et les subventions par catégorie des écoles publiques qui se trouve à l'adresse Internet suivante:"]
[]
[]
[null,null,"www.edu.gov.mb.ca/m12/stat-fin/index.html"]
[null,"","DESCRIPTION"]
[null,null,"Les formulaires et les sommaires des rapports sur les itinéraires d'autobus de la série FB 111 servent à compiler, communiquer et attester les données utilisées dans le calcul de l'aide accordée par kilomètre en charge et de la subvention pour autobus."]
[]
[]
[null,"","Les kilomètres en charge représentent la distance en kilomètres, au 30 septembre de l'année scolaire, que parcourt quotidiennement un autobus scolaire de la division ou du district scolaire :"]
[null,""]
[null,""]
[null,"","à partir de l'endroit où l'autobus prend les élèves pour les transporter à l'école  jusqu'au dernier endroit où il dépose les élèves;"]
[null,""]
[null,"","à partir de l'endroit où l'autobus prend les élèves après l'école jusqu'au dernier endroit où il dépose les élèves transportés."]
[null,""]
[null,""]
[null,"","DESCRIPTION DES TRAJETS :"]
[null,""]
[null,"","TRAJET URBAIN OU RURAL"]
[null,"","Un trajet que parcourt un autobus scolaire qui transporte des élèves résidant en milieu rural dans un milieu urbain est considéré comme un trajet rural."]
[null,""]
[null,"","TRAJET ORDINAIRE ALLER-RETOUR"]
[null,"","L'autobus suit un trajet identique, ou très semblable, pour transporter les élèves à l'école et après l'école. Consignez le kilométrage total et les kilomètres en charge du matin seulement et multipliez par deux."]
[null,""]
[null,""]
[null,"","TRAJET UNIQUE (MATIN OU APRÈS-MIDI)"]
[null,"","L'autobus ne suit pas le même trajet pour transporter les élèves à l'école et après l'école. Consignez le kilométrage total et les kilomètres en charge et multipliez par un."]
[null,""]
[null,""]
[null,"","EXEMPLES DE TRAJET :"]
[null,""]
[null,"","1) TRAJET ORDINAIRE :"]
[null,"","Si l'autobus reste chargé du premier endroit où il prend des élèves au dernier endroit où il dépose des élèves le matin et suit le même parcours au retour, il s'agit d'un trajet ordinaire."]
[null,""]
[null,""]
[null,"","2) TRAJET UNIQUE (MATIN OU APRÈS-MIDI)"]
[null,"","Si l'autobus reste chargé du premier endroit où il prend des élèves, au dernier endroit où il dépose des élèves mais ne fait qu'un seul parcours par jour,  il s'agit d'un trajet unique."]
[null,""]
[null,"","3) TRAJET ORDINAIRE OU UNIQUE"]
[null,"","Si l'autobus prend et dépose des élèves allant à une ou plusieurs écoles mais voyage à vide une partie du parcours, chaque partie est considérée comme un trajet différent, soit un trajet ordinaire ou un trajet unique, conformément aux exemples 1) et 2)."]
[null,""]
[null,""]
[null,"","EXEMPLES D'ITINÉRAIRES QUI NE SONT PAS ADMISSIBLES À UNE AIDE :"]
[null,"","• trajets du midi pour les élèves de la maternelle;"]
[null,"","• parcours de sorties ou d'excursions scolaires;"]
[null,"","• trajets empruntés par les élèves pour les cours du Programme d'études techniques (à l'exclusion des  \ndivisions qui sont partenaires du Winnipeg Technical College);"]
[null,"","• trajets permettant aux élèves de se rendre pendant la journée à un programme scolaire n'étant \npas offert à leur école."]
[]
[null,"","DIRECTIVES"]
[null,null,"Cliquez sur l'onglet « UPDATE » dans le présent classeur pour mettre à jour, à l'année scolaire réelle, les dates de communication des formulaires. Pour avoir accès au formulaire, cliquez sur l'onglet portant le numéro de formulaire correspondant. Si vous remplissez le formulaire électroniquement, n'oubliez pas d'enregistrer le fichier duquel provient la copie que vous avez imprimée."]
[]
[]
[]
[]
[null,null,"FB 111 – Rapport sur les itinéraires d'autobus"]
[null,null,"Date de communication : le 30 septembre"]
[null,null,"Le formulaire FB 111 est utilisée par les conducteurs d'autobus pour communiquer les données relatives à chaque itinéraire admissible au 30 septembre en vue de remplir le formulaire FB 111S – Sommaire des rapports sur les itinéraires d'autobus. Les données recueillies comprennent les renseignements sur le kilométrage et les descriptions des itinéraires d'autobus. "]
[]
[]
[null,""]
[null,null,"Les formulaires FB 111 sont réservés à l'usage de la division et ne doivent pas être renvoyés \nà la Direction des finances des écoles."]
[null,null,"Remplissez un formulaire pour chaque trajet d'autobus, quelle que soit la distance parcourue. Consignez les distances en kilomètres."]
[]
[]
[null,null,"Fournissez les renseignements suivants sur le formulaire :"]
[null,null,"• nom de la division ou du district scolaire;"]
[null,null,"• numéro de l'itinéraire de l'autobus scolaire;"]
[null,null,"• numéro de l'autobus scolaire."]
[]
[null,null,"Le conducteur de l'autobus doit donner les renseignements suivants et signer :"]
[null,null,"• Kilométrage – début d'itinéraire"]
[null,null,"• Kilométrage – premier élève"]
[null,null,"• Kilométrage – dernier élève"]
[null,null,"• Kilométrage – fin d'itinéraire"]
[]
[null,null,"Le superviseur du transport doit donner les renseignements suivants et signer :"]
[null,null,"• description de l'itinéraire (cochez une case pour « Urbain » ou « Rural » et une autre pour \n« Ordinaire aller-retour », « Unique (matin) » ou « Unique (après-midi) »; "]
[null,null,"• total des kilomètres et des kilomètres en charge (multipliez par « 1 » s'il s'agit d'un aller simple ou \npar « 2 » s'il s'agit d'un aller-retour)."]
[]
[null,null,"FB 111S – Sommaire des rapports sur les itinéraires d'autobus"]
[null,null,"Date de communication : le 30 septembre","Date d'échéance : le 15 octobre"]
[null,null,"Les données sur les itinéraires d’autobus recueillies au moyen des formulaires FB 111 sont compilées dans le formulaire récapitulatif FB 111S – Sommaire des rapports sur les itinéraires d’autobus."]
[]
[]
[]
[]
[null,null,"Fournissez les renseignements suivants pour chacun des itinéraires d’autobus indiqués sur le sommaire :"]
[null,null,"• numéro de l'itinéraire de l'autobus scolaire;"]
[null,null,"• numéro de l'autobus scolaire;"]
[null,null,"• cochez la case du programme de maternelle (s’il y a lieu);"]
[null,null,"• cochez la case « Urbain » ou « Rural »;"]
[null,null,"• cochez la case « unique » ou « Aller-retour »;"]
[null,null,"• saisissez le nombre total de kilomètres et de kilomètres en charge indiqué sur le formulaire \nFB 111 – Rapports sur les itinéraires d'autobus."]
[null,null,"  Le nombre de kilomètres en charge pour les régions rurales est affiché automatiquement, s’il y a lieu."]
[]
[null,null,"Entrez dans le coin supérieur gauche le nombre total d'autobus scolaires pour les élèves transportés \nsur les itinéraires approuvés de la DSFM ."]
[]
[null,null,"Imprimez le formulaire FB 111S dûment rempli et présentez la copie-papier et le fichier électronique \nà la Direction du financement de l’éducation."]
[]
[null,null,"FB 111S CERT – Attestation des sommaires des rapports sur les itinéraires d'autobus"]
[null,null,"Date de communication : le 30 septembre","Date d'échéance : le 15 octobre"]
[null,null,"Le formulaire FB 111S CERT sert à attester les données consignées dans le fichier FB 111S et il est mis à jour automatiquement à partir du fichier FB 111S."]
[]
[]
[]
[null,null,"Imprimez le formulaire d'attestation et vérifiez si les totaux affichés correspondent à ceux du formulaire FB 111S."]
[null,null,"Fournissez les dates et les signatures pertinentes."]
[null,null,"Présentez le formulaire à la Direction du financement de l’éducation."]
[]
[null,"","Par courriel à :","efb@gov.mb.ca"]

{"sheet":"FB 111 (Bus Driver)","index":3,"n_rows":51,"n_cols":29,"rows_kept":51,"cut":false,"hidden":false,"merged":[[19,8,19,11],[0,2,0,12],[35,10,35,11],[8,5,8,6],[9,5,9,6],[17,3,17,7],[33,10,33,11],[15,8,15,11],[16,8,16,11],[17,8,17,11],[14,3,14,7],[7,5,7,11],[15,3,15,7],[16,3,16,7],[14,8,14,11],[38,6,38,11],[46,6,46,11],[20,6,20,11],[21,6,21,11],[41,2,43,12],[28,4,28,5]]}
[]
[null,null,null,{"$f":"IF(lang=1,X3,Y3)","v":"Bus Route Report (School Division Internal Use)"},null,null,null,null,null,null,null,null,null,null,null,null,null,null,null,null,"X"]
[null,null,null,null,null,null,null,null,null,null,null,null,null,null,null,null,null,null,null,null,null,null,null,"Bus Route Report (School Division Internal Use)","Rapport sur les itinéraires d'autobus (Réservé à l'usage interne de la division scolaire)"]
[null,null,null,null,{"$f":"VLOOKUP(YEARNUM,YEARTABLE,2)","v":"September 29, 2022"}]
[]
[null,null,null,null,{"$f":"IF(lang=1,X6,Y6)","v":"To be completed for every bus route"},null,null,null,null,null,null,null,null,null,null,null,null,null,null,null,null,null,null,"To be completed for every bus route","À remplir pour chaque itinéraire d'autobus"]
[]
[null,null,null,null,{"$f":"IF(lang=1,X8,Y8)","v":"School Division: "},{"$f":"IF(DIVNUM=1,\"\",VLOOKUP(DIVNUM,LOOKUPTABLE,2))","v":""},null,null,null,null,null,null,null,null,null,null,null,null,null,null,null,null,null,"School Division: ","Division scolaire:"]
[null,null,null,null,{"$f":"IF(lang=1,X9,Y9)","v":"Bus Route Number:"},null,null,null,null,null,null,null,null,null,null,null,null,null,null,null,null,null,null,"Bus Route Number:","No d'itinéraire de l'autobus :"]
[null,null,null,null,{"$f":"IF(lang=1,X10,Y10)","v":"Bus Unit Number:"},null,null,null,null,null,null,null,null,null,null,null,null,null,null,null,null,null,null,"Bus Unit Number:","No de l'autobus :"]
[]
[]
[null,null,null,{"$f":"IF(lang=1,X13,Y13)","v":"Odometer  Readings (To be completed by the Bus Driver):"},null,null,null,null,null,null,null,null,null,null,null,null,null,null,null,null,null,null,null,"Odometer  Readings (To be completed by the Bus Driver):","Kilométrage (À Remplir Par Le Conducteur) :"]
[]
[null,null,null,{"$f":"IF(lang=1,X15,Y15)","v":"    A  -    Odometer start"},null,null,null,null,null,null,null,null,"KM.",null,null,null,null,null,null,null,null,null,null,"    A  -    Odometer start","A – Kilométrage - début d'itinéraire"]
[null,null,null,{"$f":"IF(lang=1,X16,Y16)","v":"    B  -    Odometer first pick up"},null,null,null,null,null,null,null,null,"KM.",null,null,null,null,null,null,null,null,null,null,"    B  -    Odometer first pick up","B – Kilométrage - premier élève"]
[null,null,null,{"$f":"IF(lang=1,X17,Y17)","v":"    C  -    Odometer last drop off"},null,null,null,null,null,null,null,null,"KM.",null,null,null,null,null,null,null,null,null,null,"    C  -    Odometer last drop off","C – Kilométrage - dernier élève"]
[null,null,null,{"$f":"IF(lang=1,X18,Y18)","v":"    D  -    Odometer finish"},null,null,null,null,null,null,null,null,"KM.",null,null,null,null,null,null,null,null,null,null,"    D  -    Odometer finish","D – Kilométrage - fin d'itinéraire"]
[]
[]
[null,null,null,{"$f":"IF(lang=1,X21,Y21)","v":"    Certified correct:"},null,null,null,null,null,null,null,null,null,null,null,null,null,null,null,null,null,null,null,"    Certified correct:","Certifié exact :"]
[null,null,null,null,null,null,{"$f":"IF(lang=1,X22,Y22)","v":" Bus  Driver's  Signature"},null,null,null,null,null,null,null,null,null,null,null,null,null,null,null,null," Bus  Driver's  Signature","Signature du conducteur de l'autobus"]
[]
[]
[]
[null,null,{"$f":"IF(lang=1,X26,Y26)","v":" Kilometre calculations (To be completed by the Transportation  Supervisor):"},null,null,null,null,null,null,null,null,null,null,null,null,null,null,null,null,null,null,null,null," Kilometre calculations (To be completed by the Transportation  Supervisor):","Calcul du kilométrage (À remplir par le Superviseur du Transport):"]
[]
[null,null,{"$f":"IF(lang=1,X28,Y28)","v":" Bus Route description (Check Urban or Rural and Regular Two-Way, One-Way A.M. or One-Way P.M.)"},null,null,null,null,null,null,null,null,null,null,null,null,null,{"$f":"IF(TEXT(D30,\"0\")=\"X\",1,0)","v":0},{"$f":"IF(TEXT(F30,\"0\")=\"X\",1,0)","v":0},null,null,null,null,null," Bus Route description (Check Urban or Rural and Regular Two-Way, One-Way A.M. or One-Way P.M.)","Description de l'itinéraire [cochez « Urbain » ou « Rural » et « Ordinaire aller-retour », « Unique (matin) » ou « Unique (après-midi) ».]"]
[]
[null,null,null,null,{"$f":"IF(lang=1,X30,Y30)","v":"  Urban"},null,"  Rural",{"$f":"IF(Q28+R28=2,\"<= Error, select only one.\",\"\")","v":""},null,null,null,null,null,null,null,null,null,null,null,null,null,null,null,"  Urban","Urbain"]
[]
[null,null,null,null,{"$f":"IF(lang=1,X32,Y32)","v":"  Regular Two-Way"},null,{"$f":"IF(lang=1,Z32,AA32)","v":"  One-Way A.M.  "},null,{"$f":"IF(lang=1,AB32,AC32)","v":"  One-Way P.M.  "},null,null,{"$f":"IF(I34=\"\",\"\",IF(I34=\"Error\",\"<= Select only one.\",\"\"))","v":""},null,null,null,null,null,null,null,null,null,null,null,"  Regular Two-Way","Ordinaire aller-retour","  One-Way A.M.  ","Unique (matin)","  One-Way P.M.  ","Unique (après-midi)"]
[]
[null,null,null,null,{"$f":"IF(lang=1,X34,Y34)","v":"    Total Kilometres  (D - A) ="},null,{"$f":"OD_FINISH-OD_START","v":0},"x",{"$f":"IF(J51>=2,\"Error\",IF(TWO=1,2,IF(OR(ONE_AM=1,ONE_PM=1),1,0)))","v":0},"=",{"$f":"G34*I34","v":0},null,"KM.",null,null,null,null,null,null,null,null,null,null,"    Total Kilometres  (D - A) =","Total des kilomètres (D - A) ="]
[]
[null,null,null,null,{"$f":"IF(lang=1,X36,Y36)","v":"    Loaded  Kilometres  (C - B) ="},null,{"$f":"OD_LAST-OD_FIRST","v":0},"x",{"$f":"IF(J51>=2,\"Error\",IF(TWO=1,2,IF(OR(ONE_AM=1,ONE_PM=1),1,0)))","v":0},"=",{"$f":"G36*I36","v":0},null,"KM.",null,null,null,null,null,null,null,null,null,null,"    Loaded  Kilometres  (C - B) =","kilomètres en charge (C - B) ="]
[]
[]
[null,null,null,null,null,{"$f":"+D21","v":"    Certified correct:"}]
[null,null,null,null,null,null,{"$f":"IF(lang=1,X40,Y40)","v":"Transportation Supervisor's Signature"},null,null,null,null,null,null,null,null,null,null,null,null,null,null,null,null,"Transportation Supervisor's Signature","Signature du superviseur du transport"]
[]
[null,null,{"$f":"IF(lang=1,X42,Y42)","v":"We  hereby  certify  that  to  the  best  of  our  knowledge  and  belief  the  information  furnished  in  this  report  is  true  and correct, and  in  accordance  with  the  laws  and  regulations  of  the  Province  of  Manitoba. (Only to be signed if requested by Schools' Finance Branch)"},null,null,null,null,null,null,null,null,null,null,null,null,null,null,null,null,null,null,null,null,"We  hereby  certify  that  to  the  best  of  our  knowledge  and  belief  the  information  furnished  in  this  report  is  true  and correct, and  in  accordance  with  the  laws  and  regulations  of  the  Province  of  Manitoba. (Only to be signed if requested by Schools' Finance Branch)","Nous attestons que les renseignements fournis dans le présent rapport sont, à notre connaissance, véridique et exacts, conformément aux lois et règlements de la Province du Manitoba."]
[]
[]
[]
[null,null,null,null,"DATE",null,{"$f":"IF(lang=1,X46,Y46)","v":"Superintendent"},null,null,null,null,null,null,null,null,null,null,null,null,null,null,null,null,"Superintendent","Directeur Général Des Écoles"]
[]
[null,null,null,null,"DATE",null,{"$f":"IF(lang=1,X48,Y48)","v":"Secretary-Treasurer"},null,null,null,null,null,null,null,null,null,null,null,null,null,null,null,null,"Secretary-Treasurer","Secrétaire-Trésorier"]
[]
[]
[null,null,null,null,null,null,{"$f":"IF(TEXT(D32,\"0\")=\"X\",1,0)","v":0},{"$f":"IF(TEXT(F32,\"0\")=\"X\",1,0)","v":0},{"$f":"IF(TEXT(H32,\"0\")=\"X\",1,0)","v":0},{"$f":"SUM(G51:I51)","v":0}]

{"sheet":"FB111S Summary","index":4,"n_rows":379,"n_cols":30,"rows_kept":379,"cut":false,"hidden":false,"merged":[[12,3,12,7],[8,3,8,7],[9,4,9,5],[9,6,9,7],[5,1,6,7],[10,6,11,6],[10,7,11,7],[10,4,11,4],[10,5,11,5],[7,3,7,7]]}
[{"$f":"IF(DIVNUM=1,\"\",VLOOKUP(DIVNUM,LOOKUPTABLE,2))","v":""}]
[{"$f":"IF(lang=1,T2,U2)","v":"Bus Route Summary (FB111S)"},null,null,null,null,null,null,null,null,null,null,null,null,null,null,null,null,null,null,"Bus Route Summary (FB111S)","Sommaire des rapports sur les itinéraires d'autobus (FB111S)"]
[{"$f":"VLOOKUP(YEARNUM,YEARTABLE,2)","v":"September 29, 2022"}]
[]
[null,{"$f":"IF(lang=1,T5,U5)","v":"Total # of Routes ="},{"$f":"COUNTA(B15:B379)","v":0},null,null,null,null,null,null,null,null,null,null,null,null,null,null,null,null,"Total # of Routes =","Nbre total d'itin. ="]
[null,{"$f":"IF(lang=1,T6,U6)","v":"Number of Buses Reporting Ridership for Approved Rural Routes ="},null,null,null,null,null,null,{"$f":"SUM(IF(COUNTIF(C15:C379,C15:C379)=0, \"\", 1/COUNTIF(C15:C379,C15:C379)))","v":0},null,null,null,null,null,null,null,null,null,null,"Number of Buses Reporting Ridership for Approved Rural Routes =","Nbre total d'autobus pour les élèves transportés sur les itinéraires approuvés de la DSFM"]
[null,null,null,null,null,null,null,null,{"$f":"SUM(IF(\"X\"=$F$15:$F$379, 1/(COUNTIFS($F$15:$F$379, \"X\", $C$15:$C$379, $C$15:$C$379)), 0))","v":0}]
[null,null,null,{"$f":"IF(lang=1,T8,U8)","v":"Bus Route Description"},null,null,null,null,null,null,null,null,null,null,null,null,null,null,null,"Bus Route Description"," Description de l'itinéraire"]
[null,null,null,{"$f":"IF(lang=1,T9,U9)","v":"(Use the Letter \"X\" Where Applicable) "},null,null,null,null,null,null,null,null,null,null,null,null,null,null,null,"(Use the Letter \"X\" Where Applicable) ","(Utilisez la lettre \"X\", le cas échéant)"]
[null,null,null,{"$f":"IF(lang=1,\"\",V15)","v":""},{"$f":"IF(lang=1,W11,W15)","v":"Select One"},null,{"$f":"+E10","v":"Select One"},null,null,"Km",null,"Urbain","Rural",null,null,null,null,null,null,"Bus Route #","Bus Unit #",null,null,null,null,null,null,null,"Rural"]
[null,null,null,{"$f":"IF(lang=1,V11,V13)","v":"Kinder-"},{"$f":"IF(lang=1,W12,W14)","v":"Urban"},"Rural",{"$f":"IF(lang=1,Y12,Y14)","v":"One-Way"},{"$f":"IF(lang=1,Z12,Z13&Z14)","v":"Two-Way"},"Total","en charge","Loaded","Kms",{"$f":"IF(lang=1,\"Loaded\",I12)","v":"Loaded"},null,null,null,null,null,null,"No de l'itinéraire","No d'autobus","Kinder-","Select One",null,"Select One",null,"Total","Loaded","Loaded"]
[null,{"$f":"IF(lang=1,T10,T11)","v":"Bus Route #"},{"$f":"IF(lang=1,U10,U11)","v":"Bus Unit #"},{"$f":"IF(lang=1,V12,V14)","v":"garten"},null,null,null,null,"KM's","(DSFM)","KM's","en charge",{"$f":"IF(lang=1,AC12,AD13)","v":"KM's"},null,null,null,null,null,null,null,null,"garten","Urban","Rural","One-Way","Two-Way","KM's","KM's","KM's"]
[null,{"$f":"IF(lang=1,\"School Division Total\",\"Total pour la division scolaire\")","v":"School Division Total"},null,null,null,null,null,null,{"$f":"SUM(I15:I379)","v":0},{"$f":"SUM(J15:J214)","v":0},{"$f":"SUM(K15:K379)","v":0},{"$f":"SUM(L15:L379)","v":0},{"$f":"SUM(M15:M379)","v":0},null,null,null,null,null,null,null,null,"Mater-",null,null,null,"Aller-","Total","en charge","en charge","en charge"]
[null,null,null,null,null,null,null,null,null,null,null,null,null,null,null,null,null,null,null,null,null,"nelle","Urbain","Rural","Unique","retour","KM's","(DSFM)","(urbain)","(rural)"]
[1,null,null,null,null,null,null,null,null,null,null,{"$f":"IF(E15=\"X\",J15,0)","v":0},{"$f":"CHOOSE(lang,IF(F15=\"X\",K15,0),IF(F15=\"X\",J15,0))","v":0},{"$f":"IF(AND(E15=\"X\",F15=\"X\"),\"Error\",\"\")","v":""},null,null,null,null,null,null,null,"(Cochez)","(1 case)",null,"(1 case)",null,null,1]
[{"$f":"IF(AB15+1>totalbusroute,\"\",AB15+1)","v":2},null,null,null,null,null,null,null,null,null,null,{"$f":"IF(E16=\"X\",J16,0)","v":0},0,{"$f":"IF(AND(E16=\"X\",F16=\"X\"),\"Error\",\"\")","v":""},null,null,null,null,null,null,null,null,null,null,null,null,null,{"$f":"+AB15+1","v":2}]
[{"$f":"IF(AB16+1>totalbusroute,\"\",AB16+1)","v":3},null,null,null,null,null,null,null,null,null,null,0,0,"",null,null,null,null,null,null,null,null,null,null,null,null,null,{"$f":"+AB16+1","v":3}]
[4,null,null,null,null,null,null,null,null,null,null,0,0,"",null,null,null,null,null,null,null,null,null,null,null,null,null,4]
[5,null,null,null,null,null,null,null,null,null,null,0,0,"",null,null,null,null,null,null,null,null,null,null,null,null,null,5]
[6,null,null,null,null,null,null,null,null,null,null,0,0,"",null,null,null,null,null,null,null,null,null,null,null,null,null,6]
[7,null,null,null,null,null,null,null,null,null,null,0,0,"",null,null,null,null,null,null,null,null,null,null,null,null,null,7]
[8,null,null,null,null,null,null,null,null,null,null,0,0,"",null,null,null,null,null,null,null,null,null,null,null,null,null,8]
[9,null,null,null,null,null,null,null,null,null,null,0,0,"",null,null,null,null,null,null,null,null,null,null,null,null,null,9]
[10,null,null,null,null,null,null,null,null,null,null,0,0,"",null,null,null,null,null,null,null,null,null,null,null,null,null,10]
[11,null,null,null,null,null,null,null,null,null,null,0,0,"",null,null,null,null,null,null,null,null,null,null,null,null,null,11]
[12,null,null,null,null,null,null,null,null,null,null,0,0,"",null,null,null,null,null,null,null,null,null,null,null,null,null,12]
[13,null,null,null,null,null,null,null,null,null,null,0,0,"",null,null,null,null,null,null,null,null,null,null,null,null,null,13]
[14,null,null,null,null,null,null,null,null,null,null,0,0,"",null,null,null,null,null,null,null,null,null,null,null,null,null,14]
[15,null,null,null,null,null,null,null,null,null,null,0,0,"",null,null,null,null,null,null,null,null,null,null,null,null,null,15]
[16,null,null,null,null,null,null,null,null,null,null,0,0,"",null,null,null,null,null,null,null,null,null,null,null,null,null,16]
[17,null,null,null,null,null,null,null,null,null,null,0,0,"",null,null,null,null,null,null,null,null,null,null,null,null,null,17]
[18,null,null,null,null,null,null,null,null,null,null,0,0,"",null,null,null,null,null,null,null,null,null,null,null,null,null,18]
[19,null,null,null,null,null,null,null,null,null,null,0,0,"",null,null,null,null,null,null,null,null,null,null,null,null,null,19]
[20,null,null,null,null,null,null,null,null,null,null,0,0,"",null,null,null,null,null,null,null,null,null,null,null,null,null,20]
[21,null,null,null,null,null,null,null,null,null,null,0,0,"",null,null,null,null,null,null,null,null,null,null,null,null,null,21]
[22,null,null,null,null,null,null,null,null,null,null,0,0,"",null,null,null,null,null,null,null,null,null,null,null,null,null,22]
[23,null,null,null,null,null,null,null,null,null,null,0,0,"",null,null,null,null,null,null,null,null,null,null,null,null,null,23]
[24,null,null,null,null,null,null,null,null,null,null,0,0,"",null,null,null,null,null,null,null,null,null,null,null,null,null,24]
[25,null,null,null,null,null,null,null,null,null,null,0,0,"",null,null,null,null,null,null,null,null,null,null,null,null,null,25]
[26,null,null,null,null,null,null,null,null,null,null,0,0,"",null,null,null,null,null,null,null,null,null,null,null,null,null,26]
[27,null,null,null,null,null,null,null,null,null,null,0,0,"",null,null,null,null,null,null,null,null,null,null,null,null,null,27]
[28,null,null,null,null,null,null,null,null,null,null,0,0,"",null,null,null,null,null,null,null,null,null,null,null,null,null,28]
[29,null,null,null,null,null,null,null,null,null,null,0,0,"",null,null,null,null,null,null,null,null,null,null,null,null,null,29]
[30,null,null,null,null,null,null,null,null,null,null,0,0,"",null,null,null,null,null,null,null,null,null,null,null,null,null,30]
[31,null,null,null,null,null,null,null,null,null,null,0,0,"",null,null,null,null,null,null,null,null,null,null,null,null,null,31]
["",null,null,null,null,null,null,null,null,null,null,0,0,"",null,null,null,null,null,null,null,null,null,null,null,null,null,32]
["",null,null,null,null,null,null,null,null,null,null,0,{"$f":"CHOOSE(lang,IF(F47=\"X\",K47,0),IF(F47=\"X\",J47,0))","v":0},"",null,null,null,null,null,null,null,null,null,null,null,null,null,33]
["",null,null,null,null,null,null,null,null,null,null,0,0,"",null,null,null,null,null,null,null,null,null,null,null,null,null,34]
["",null,null,null,null,null,null,null,null,null,null,0,0,"",null,null,null,null,null,null,null,null,null,null,null,null,null,35]
["",null,null,null,null,null,null,null,null,null,null,0,0,"",null,null,null,null,null,null,null,null,null,null,null,null,null,36]
["",null,null,null,null,null,null,null,null,null,null,0,0,"",null,null,null,null,null,null,null,null,null,null,null,null,null,37]
["",null,null,null,null,null,null,null,null,null,null,0,0,"",null,null,null,null,null,null,null,null,null,null,null,null,null,38]
["",null,null,null,null,null,null,null,null,null,null,0,0,"",null,null,null,null,null,null,null,null,null,null,null,null,null,39]
["",null,null,null,null,null,null,null,null,null,null,0,0,"",null,null,null,null,null,null,null,null,null,null,null,null,null,40]
["",null,null,null,null,null,null,null,null,null,null,0,0,"",null,null,null,null,null,null,null,null,null,null,null,null,null,41]
["",null,null,null,null,null,null,null,null,null,null,0,0,"",null,null,null,null,null,null,null,null,null,null,null,null,null,42]
["",null,null,null,null,null,null,null,null,null,null,0,0,"",null,null,null,null,null,null,null,null,null,null,null,null,null,43]
["",null,null,null,null,null,null,null,null,null,null,0,0,"",null,null,null,null,null,null,null,null,null,null,null,null,null,44]
["",null,null,null,null,null,null,null,null,null,null,0,0,"",null,null,null,null,null,null,null,null,null,null,null,null,null,45]
["",null,null,null,null,null,null,null,null,null,null,0,0,"",null,null,null,null,null,null,null,null,null,null,null,null,null,46]
["",null,null,null,null,null,null,null,null,null,null,0,0,"",null,null,null,null,null,null,null,null,null,null,null,null,null,47]
["",null,null,null,null,null,null,null,null,null,null,0,0,"",null,null,null,null,null,null,null,null,null,null,null,null,null,48]
["",null,null,null,null,null,null,null,null,null,null,0,0,"",null,null,null,null,null,null,null,null,null,null,null,null,null,49]
["",null,null,null,null,null,null,null,null,null,null,0,0,"",null,null,null,null,null,null,null,null,null,null,null,null,null,50]
["",null,null,null,null,null,null,null,null,null,null,0,0,"",null,null,null,null,null,null,null,null,null,null,null,null,null,51]
["",null,null,null,null,null,null,null,null,null,null,0,0,"",null,null,null,null,null,null,null,null,null,null,null,null,null,52]
["",null,null,null,null,null,null,null,null,null,null,0,0,"",null,null,null,null,null,null,null,null,null,null,null,null,null,53]
["",null,null,null,null,null,null,null,null,null,null,0,0,"",null,null,null,null,null,null,null,null,null,null,null,null,null,54]
["",null,null,null,null,null,null,null,null,null,null,0,0,"",null,null,null,null,null,null,null,null,null,null,null,null,null,55]
["",null,null,null,null,null,null,null,null,null,null,0,0,"",null,null,null,null,null,null,null,null,null,null,null,null,null,56]
["",null,null,null,null,null,null,null,null,null,null,0,0,"",null,null,null,null,null,null,null,null,null,null,null,null,null,57]
["",null,null,null,null,null,null,null,null,null,null,0,0,"",null,null,null,null,null,null,null,null,null,null,null,null,null,58]
["",null,null,null,null,null,null,null,null,null,null,0,0,"",null,null,null,null,null,null,null,null,null,null,null,null,null,59]
["",null,null,null,null,null,null,null,null,null,null,0,0,"",null,null,null,null,null,null,null,null,null,null,null,null,null,60]
["",null,null,null,null,null,null,null,null,null,null,{"$f":"IF(E75=\"X\",J75,0)","v":0},{"$f":"CHOOSE(lang,IF(F75=\"X\",K75,0),IF(F75=\"X\",J75,0))","v":0},null,null,null,null,null,null,null,null,null,null,null,null,null,null,61]
["",null,null,null,null,null,null,null,null,null,null,0,0,null,null,null,null,null,null,null,null,null,null,null,null,null,null,62]
["",null,null,null,null,null,null,null,null,null,null,0,0,null,null,null,null,null,null,null,null,null,null,null,null,null,null,63]
["",null,null,null,null,null,null,null,null,null,null,0,0,null,null,null,null,null,null,null,null,null,null,null,null,null,null,64]
["",null,null,null,null,null,null,null,null,null,null,0,0,null,null,null,null,null,null,null,null,null,null,null,null,null,null,65]
[{"$f":"IF(AB79+1>totalbusroute,\"\",AB79+1)","v":""},null,null,null,null,null,null,null,null,null,null,0,0,null,null,null,null,null,null,null,null,null,null,null,null,null,null,66]
["",null,null,null,null,null,null,null,null,null,null,0,0,null,null,null,null,null,null,null,null,null,null,null,null,null,null,{"$f":"+AB80+1","v":67}]
["",null,null,null,null,null,null,null,null,null,null,0,0,null,null,null,null,null,null,null,null,null,null,null,null,null,null,68]
["",null,null,null,null,null,null,null,null,null,null,0,0,null,null,null,null,null,null,null,null,null,null,null,null,null,null,69]
["",null,null,null,null,null,null,null,null,null,null,0,0,null,null,null,null,null,null,null,null,null,null,null,null,null,null,70]
["",null,null,null,null,null,null,null,null,null,null,0,0,null,null,null,null,null,null,null,null,null,null,null,null,null,null,71]
["",null,null,null,null,null,null,null,null,null,null,0,0,null,null,null,null,null,null,null,null,null,null,null,null,null,null,72]
["",null,null,null,null,null,null,null,null,null,null,0,0,null,null,null,null,null,null,null,null,null,null,null,null,null,null,73]
["",null,null,null,null,null,null,null,null,null,null,{"$f":"IF(E88=\"X\",J88,0)","v":0},{"$f":"CHOOSE(lang,IF(F88=\"X\",K88,0),IF(F88=\"X\",J88,0))","v":0},null,null,null,null,null,null,null,null,null,null,null,null,null,null,74]
["",null,null,null,null,null,null,null,null,null,null,0,0,null,null,null,null,null,null,null,null,null,null,null,null,null,null,75]
["",null,null,null,null,null,null,null,null,null,null,0,0,null,null,null,null,null,null,null,null,null,null,null,null,null,null,76]
["",null,null,null,null,null,null,null,null,null,null,0,0,null,null,null,null,null,null,null,null,null,null,null,null,null,null,77]
["",null,null,null,null,null,null,null,null,null,null,0,0,null,null,null,null,null,null,null,null,null,null,null,null,null,null,78]
["",null,null,null,null,null,null,null,null,null,null,0,0,null,null,null,null,null,null,null,null,null,null,null,null,null,null,79]
["",null,null,null,null,null,null,null,null,null,null,0,0,null,null,null,null,null,null,null,null,null,null,null,null,null,null,80]
["",null,null,null,null,null,null,null,null,null,null,0,0,null,null,null,null,null,null,null,null,null,null,null,null,null,null,81]
["",null,null,null,null,null,null,null,null,null,null,0,0,null,null,null,null,null,null,null,null,null,null,null,null,null,null,82]
["",null,null,null,null,null,null,null,null,null,null,0,0,null,null,null,null,null,null,null,null,null,null,null,null,null,null,83]
["",null,null,null,null,null,null,null,null,null,null,0,0,null,null,null,null,null,null,null,null,null,null,null,null,null,null,84]
["",null,null,null,null,null,null,null,null,null,null,0,0,null,null,null,null,null,null,null,null,null,null,null,null,null,null,85]
["",null,null,null,null,null,null,null,null,null,null,0,0,null,null,null,null,null,null,null,null,null,null,null,null,null,null,86]
["",null,null,null,null,null,null,null,null,null,null,0,0,null,null,null,null,null,null,null,null,null,null,null,null,null,null,87]
["",null,null,null,null,null,null,null,null,null,null,0,0,null,null,null,null,null,null,null,null,null,null,null,null,null,null,88]
["",null,null,null,null,null,null,null,null,null,null,0,0,null,null,null,null,null,null,null,null,null,null,null,null,null,null,89]
["",null,null,null,null,null,null,null,null,null,null,0,0,null,null,null,null,null,null,null,null,null,null,null,null,null,null,90]
["",null,null,null,null,null,null,null,null,null,null,0,0,null,null,null,null,null,null,null,null,null,null,null,null,null,null,91]
["",null,null,null,null,null,null,null,null,null,null,{"$f":"IF(E106=\"X\",J106,0)","v":0},{"$f":"CHOOSE(lang,IF(F106=\"X\",K106,0),IF(F106=\"X\",J106,0))","v":0},null,null,null,null,null,null,null,null,null,null,null,null,null,null,92]
["",null,null,null,null,null,null,null,null,null,null,0,0,null,null,null,null,null,null,null,null,null,null,null,null,null,null,93]
["",null,null,null,null,null,null,null,null,null,null,0,0,null,null,null,null,null,null,null,null,null,null,null,null,null,null,94]
["",null,null,null,null,null,null,null,null,null,null,0,0,null,null,null,null,null,null,null,null,null,null,null,null,null,null,95]
["",null,null,null,null,null,null,null,null,null,null,0,0,null,null,null,null,null,null,null,null,null,null,null,null,null,null,96]
["",null,null,null,null,null,null,null,null,null,null,0,0,null,null,null,null,null,null,null,null,null,null,null,null,null,null,97]
["",null,null,null,null,null,null,null,null,null,null,0,0,null,null,null,null,null,null,null,null,null,null,null,null,null,null,98]
["",null,null,null,null,null,null,null,null,null,null,0,0,null,null,null,null,null,null,null,null,null,null,null,null,null,null,99]
["",null,null,null,null,null,null,null,null,null,null,0,0,null,null,null,null,null,null,null,null,null,null,null,null,null,null,100]
["",null,null,null,null,null,null,null,null,null,null,0,0,null,null,null,null,null,null,null,null,null,null,null,null,null,null,101]
["",null,null,null,null,null,null,null,null,null,null,0,0,null,null,null,null,null,null,null,null,null,null,null,null,null,null,102]
["",null,null,null,null,null,null,null,null,null,null,0,0,null,null,null,null,null,null,null,null,null,null,null,null,null,null,103]
["",null,null,null,null,null,null,null,null,null,null,0,0,null,null,null,null,null,null,null,null,null,null,null,null,null,null,104]
["",null,null,null,null,null,null,null,null,null,null,0,0,null,null,null,null,null,null,null,null,null,null,null,null,null,null,105]
["",null,null,null,null,null,null,null,null,null,null,0,0,null,null,null,null,null,null,null,null,null,null,null,null,null,null,106]
["",null,null,null,null,null,null,null,null,null,null,0,0,null,null,null,null,null,null,null,null,null,null,null,null,null,null,107]
["",null,null,null,null,null,null,null,null,null,null,0,0,null,null,null,null,null,null,null,null,null,null,null,null,null,null,108]
["",null,null,null,null,null,null,null,null,null,null,0,0,null,null,null,null,null,null,null,null,null,null,null,null,null,null,109]
["",null,null,null,null,null,null,null,null,null,null,0,0,null,null,null,null,null,null,null,null,null,null,null,null,null,null,110]
["",null,null,null,null,null,null,null,null,null,null,0,0,null,null,null,null,null,null,null,null,null,null,null,null,null,null,111]
["",null,null,null,null,null,null,null,null,null,null,0,0,null,null,null,null,null,null,null,null,null,null,null,null,null,null,112]
["",null,null,null,null,null,null,null,null,null,null,0,0,null,null,null,null,null,null,null,null,null,null,null,null,null,null,113]
["",null,null,null,null,null,null,null,null,null,null,0,0,null,null,null,null,null,null,null,null,null,null,null,null,null,null,114]
["",null,null,null,null,null,null,null,null,null,null,0,0,null,null,null,null,null,null,null,null,null,null,null,null,null,null,115]
["",null,null,null,null,null,null,null,null,null,null,0,0,null,null,null,null,null,null,null,null,null,null,null,null,null,null,116]
["",null,null,null,null,null,null,null,null,null,null,0,0,null,null,null,null,null,null,null,null,null,null,null,null,null,null,117]
["",null,null,null,null,null,null,null,null,null,null,0,0,null,null,null,null,null,null,null,null,null,null,null,null,null,null,118]
["",null,null,null,null,null,null,null,null,null,null,0,0,null,null,null,null,null,null,null,null,null,null,null,null,null,null,119]
["",null,null,null,null,null,null,null,null,null,null,0,0,null,null,null,null,null,null,null,null,null,null,null,null,null,null,120]
["",null,null,null,null,null,null,null,null,null,null,0,0,null,null,null,null,null,null,null,null,null,null,null,null,null,null,121]
["",null,null,null,null,null,null,null,null,null,null,0,0,null,null,null,null,null,null,null,null,null,null,null,null,null,null,122]
["",null,null,null,null,null,null,null,null,null,null,0,0,null,null,null,null,null,null,null,null,null,null,null,null,null,null,123]
["",null,null,null,null,null,null,null,null,null,null,0,0,null,null,null,null,null,null,null,null,null,null,null,null,null,null,124]
["",null,null,null,null,null,null,null,null,null,null,0,0,null,null,null,null,null,null,null,null,null,null,null,null,null,null,125]
["",null,null,null,null,null,null,null,null,null,null,0,0,null,null,null,null,null,null,null,null,null,null,null,null,null,null,126]
["",null,null,null,null,null,null,null,null,null,null,0,0,null,null,null,null,null,null,null,null,null,null,null,null,null,null,127]
["",null,null,null,null,null,null,null,null,null,null,0,0,null,null,null,null,null,null,null,null,null,null,null,null,null,null,128]
["",null,null,null,null,null,null,null,null,null,null,0,0,null,null,null,null,null,null,null,null,null,null,null,null,null,null,129]
[{"$f":"IF(AB143+1>totalbusroute,\"\",AB143+1)","v":""},null,null,null,null,null,null,null,null,null,null,0,0,null,null,null,null,null,null,null,null,null,null,null,null,null,null,130]
["",null,null,null,null,null,null,null,null,null,null,null,{"$f":"IF(lang=1,IF(F145=\"X\",K145,IF(F145=\"X\",J145,0)))","v":0},null,null,null,null,null,null,null,null,null,null,null,null,null,null,{"$f":"+AB144+1","v":131}]
["",null,null,null,null,null,null,null,null,null,null,null,0,null,null,null,null,null,null,null,null,null,null,null,null,null,null,132]
["",null,null,null,null,null,null,null,null,null,null,null,0,null,null,null,null,null,null,null,null,null,null,null,null,null,null,133]
["",null,null,null,null,null,null,null,null,null,null,null,0,null,null,null,null,null,null,null,null,null,null,null,null,null,null,134]
["",null,null,null,null,null,null,null,null,null,null,null,0,null,null,null,null,null,null,null,null,null,null,null,null,null,null,135]
["",null,null,null,null,null,null,null,null,null,null,null,0,null,null,null,null,null,null,null,null,null,null,null,null,null,null,136]
["",null,null,null,null,null,null,null,null,null,null,null,0,null,null,null,null,null,null,null,null,null,null,null,null,null,null,137]
["",null,null,null,null,null,null,null,null,null,null,null,0,null,null,null,null,null,null,null,null,null,null,null,null,null,null,138]
["",null,null,null,null,null,null,null,null,null,null,null,0,null,null,null,null,null,null,null,null,null,null,null,null,null,null,139]
["",null,null,null,null,null,null,null,null,null,null,null,0,null,null,null,null,null,null,null,null,null,null,null,null,null,null,140]
["",null,null,null,null,null,null,null,null,null,null,null,0,null,null,null,null,null,null,null,null,null,null,null,null,null,null,141]
["",null,null,null,null,null,null,null,null,null,null,null,0,null,null,null,null,null,null,null,null,null,null,null,null,null,null,142]
["",null,null,null,null,null,null,null,null,null,null,null,0,null,null,null,null,null,null,null,null,null,null,null,null,null,null,143]
["",null,null,null,null,null,null,null,null,null,null,null,0,null,null,null,null,null,null,null,null,null,null,null,null,null,null,144]
["",null,null,null,null,null,null,null,null,null,null,null,0,null,null,null,null,null,null,null,null,null,null,null,null,null,null,145]
["",null,null,null,null,null,null,null,null,null,null,null,0,null,null,null,null,null,null,null,null,null,null,null,null,null,null,146]
["",null,null,null,null,null,null,null,null,null,null,null,0,null,null,null,null,null,null,null,null,null,null,null,null,null,null,147]
["",null,null,null,null,null,null,null,null,null,null,null,0,null,null,null,null,null,null,null,null,null,null,null,null,null,null,148]
["",null,null,null,null,null,null,null,null,null,null,null,0,null,null,null,null,null,null,null,null,null,null,null,null,null,null,149]
["",null,null,null,null,null,null,null,null,null,null,null,0,null,null,null,null,null,null,null,null,null,null,null,null,null,null,150]
["",null,null,null,null,null,null,null,null,null,null,null,0,null,null,null,null,null,null,null,null,null,null,null,null,null,null,151]
["",null,null,null,null,null,null,null,null,null,null,null,0,null,null,null,null,null,null,null,null,null,null,null,null,null,null,152]
["",null,null,null,null,null,null,null,null,null,null,null,0,null,null,null,null,null,null,null,null,null,null,null,null,null,null,153]
["",null,null,null,null,null,null,null,null,null,null,null,0,null,null,null,null,null,null,null,null,null,null,null,null,null,null,154]
["",null,null,null,null,null,null,null,null,null,null,null,0,null,null,null,null,null,null,null,null,null,null,null,null,null,null,155]
["",null,null,null,null,null,null,null,null,null,null,null,0,null,null,null,null,null,null,null,null,null,null,null,null,null,null,156]
["",null,null,null,null,null,null,null,null,null,null,null,0,null,null,null,null,null,null,null,null,null,null,null,null,null,null,157]
["",null,null,null,null,null,null,null,null,null,null,null,0,null,null,null,null,null,null,null,null,null,null,null,null,null,null,158]
["",null,null,null,null,null,null,null,null,null,null,null,0,null,null,null,null,null,null,null,null,null,null,null,null,null,null,159]
["",null,null,null,null,null,null,null,null,null,null,null,0,null,null,null,null,null,null,null,null,null,null,null,null,null,null,160]
["",null,null,null,null,null,null,null,null,null,null,null,0,null,null,null,null,null,null,null,null,null,null,null,null,null,null,161]
["",null,null,null,null,null,null,null,null,null,null,null,0,null,null,null,null,null,null,null,null,null,null,null,null,null,null,162]
["",null,null,null,null,null,null,null,null,null,null,null,0,null,null,null,null,null,null,null,null,null,null,null,null,null,null,163]
["",null,null,null,null,null,null,null,null,null,null,null,0,null,null,null,null,null,null,null,null,null,null,null,null,null,null,164]
["",null,null,null,null,null,null,null,null,null,null,null,0,null,null,null,null,null,null,null,null,null,null,null,null,null,null,165]
["",null,null,null,null,null,null,null,null,null,null,null,0,null,null,null,null,null,null,null,null,null,null,null,null,null,null,166]
["",null,null,null,null,null,null,null,null,null,null,null,0,null,null,null,null,null,null,null,null,null,null,null,null,null,null,167]
["",null,null,null,null,null,null,null,null,null,null,null,0,null,null,null,null,null,null,null,null,null,null,null,null,null,null,168]
["",null,null,null,null,null,null,null,null,null,null,null,0,null,null,null,null,null,null,null,null,null,null,null,null,null,null,169]
["",null,null,null,null,null,null,null,null,null,null,null,0,null,null,null,null,null,null,null,null,null,null,null,null,null,null,170]
["",null,null,null,null,null,null,null,null,null,null,null,0,null,null,null,null,null,null,null,null,null,null,null,null,null,null,171]
["",null,null,null,null,null,null,null,null,null,null,null,0,null,null,null,null,null,null,null,null,null,null,null,null,null,null,172]
["",null,null,null,null,null,null,null,null,null,null,null,0,null,null,null,null,null,null,null,null,null,null,null,null,null,null,173]
["",null,null,null,null,null,null,null,null,null,null,null,0,null,null,null,null,null,null,null,null,null,null,null,null,null,null,174]
["",null,null,null,null,null,null,null,null,null,null,null,0,null,null,null,null,null,null,null,null,null,null,null,null,null,null,175]
["",null,null,null,null,null,null,null,null,null,null,null,0,null,null,null,null,null,null,null,null,null,null,null,null,null,null,176]
["",null,null,null,null,null,null,null,null,null,null,null,0,null,null,null,null,null,null,null,null,null,null,null,null,null,null,177]
["",null,null,null,null,null,null,null,null,null,null,null,0,null,null,null,null,null,null,null,null,null,null,null,null,null,null,178]
["",null,null,null,null,null,null,null,null,null,null,null,0,null,null,null,null,null,null,null,null,null,null,null,null,null,null,179]
["",null,null,null,null,null,null,null,null,null,null,null,0,null,null,null,null,null,null,null,null,null,null,null,null,null,null,180]
["",null,null,null,null,null,null,null,null,null,null,null,0,null,null,null,null,null,null,null,null,null,null,null,null,null,null,181]
["",null,null,null,null,null,null,null,null,null,null,null,0,null,null,null,null,null,null,null,null,null,null,null,null,null,null,182]
["",null,null,null,null,null,null,null,null,null,null,null,0,null,null,null,null,null,null,null,null,null,null,null,null,null,null,183]
["",null,null,null,null,null,null,null,null,null,null,null,0,null,null,null,null,null,null,null,null,null,null,null,null,null,null,184]
["",null,null,null,null,null,null,null,null,null,null,null,0,null,null,null,null,null,null,null,null,null,null,null,null,null,null,185]
["",null,null,null,null,null,null,null,null,null,null,null,0,null,null,null,null,null,null,null,null,null,null,null,null,null,null,186]
["",null,null,null,null,null,null,null,null,null,null,null,0,null,null,null,null,null,null,null,null,null,null,null,null,null,null,187]
["",null,null,null,null,null,null,null,null,null,null,null,0,null,null,null,null,null,null,null,null,null,null,null,null,null,null,188]
["",null,null,null,null,null,null,null,null,null,null,null,0,null,null,null,null,null,null,null,null,null,null,null,null,null,null,189]
["",null,null,null,null,null,null,null,null,null,null,null,{"$f":"IF(lang=1,IF(F204=\"X\",K204,IF(F204=\"X\",J204,0)))","v":0},null,null,null,null,null,null,null,null,null,null,null,null,null,null,190]
["",null,null,null,null,null,null,null,null,null,null,null,0,null,null,null,null,null,null,null,null,null,null,null,null,null,null,191]
["",null,null,null,null,null,null,null,null,null,null,null,0,null,null,null,null,null,null,null,null,null,null,null,null,null,null,192]
["",null,null,null,null,null,null,null,null,null,null,null,0,null,null,null,null,null,null,null,null,null,null,null,null,null,null,193]
[{"$f":"IF(AB207+1>totalbusroute,\"\",AB207+1)","v":""},null,null,null,null,null,null,null,null,null,null,null,0,null,null,null,null,null,null,null,null,null,null,null,null,null,null,194]
["",null,null,null,null,null,null,null,null,null,null,null,0,null,null,null,null,null,null,null,null,null,null,null,null,null,null,{"$f":"+AB208+1","v":195}]
["",null,null,null,null,null,null,null,null,null,null,null,0,null,null,null,null,null,null,null,null,null,null,null,null,null,null,196]
["",null,null,null,null,null,null,null,null,null,null,null,0,null,null,null,null,null,null,null,null,null,null,null,null,null,null,197]
["",null,null,null,null,null,null,null,null,null,null,null,0,null,null,null,null,null,null,null,null,null,null,null,null,null,null,198]
["",null,null,null,null,null,null,null,null,null,null,null,0,null,null,null,null,null,null,null,null,null,null,null,null,null,null,199]
["",null,null,null,null,null,null,null,null,null,null,null,0,null,null,null,null,null,null,null,null,null,null,null,null,null,null,200]
["",null,null,null,null,null,null,null,null,null,null,null,0,null,null,null,null,null,null,null,null,null,null,null,null,null,null,201]
["",null,null,null,null,null,null,null,null,null,null,null,0,null,null,null,null,null,null,null,null,null,null,null,null,null,null,202]
["",null,null,null,null,null,null,null,null,null,null,null,0,null,null,null,null,null,null,null,null,null,null,null,null,null,null,203]
["",null,null,null,null,null,null,null,null,null,null,null,0,null,null,null,null,null,null,null,null,null,null,null,null,null,null,204]
["",null,null,null,null,null,null,null,null,null,null,null,0,null,null,null,null,null,null,null,null,null,null,null,null,null,null,205]
["",null,null,null,null,null,null,null,null,null,null,null,0,null,null,null,null,null,null,null,null,null,null,null,null,null,null,206]
["",null,null,null,null,null,null,null,null,null,null,null,0,null,null,null,null,null,null,null,null,null,null,null,null,null,null,207]
["",null,null,null,null,null,null,null,null,null,null,null,0,null,null,null,null,null,null,null,null,null,null,null,null,null,null,208]
["",null,null,null,null,null,null,null,null,null,null,null,0,null,null,null,null,null,null,null,null,null,null,null,null,null,null,209]
["",null,null,null,null,null,null,null,null,null,null,null,0,null,null,null,null,null,null,null,null,null,null,null,null,null,null,210]
["",null,null,null,null,null,null,null,null,null,null,null,0,null,null,null,null,null,null,null,null,null,null,null,null,null,null,211]
["",null,null,null,null,null,null,null,null,null,null,null,0,null,null,null,null,null,null,null,null,null,null,null,null,null,null,212]
["",null,null,null,null,null,null,null,null,null,null,null,0,null,null,null,null,null,null,null,null,null,null,null,null,null,null,213]
["",null,null,null,null,null,null,null,null,null,null,null,0,null,null,null,null,null,null,null,null,null,null,null,null,null,null,214]
["",null,null,null,null,null,null,null,null,null,null,null,0,null,null,null,null,null,null,null,null,null,null,null,null,null,null,215]
["",null,null,null,null,null,null,null,null,null,null,null,0,null,null,null,null,null,null,null,null,null,null,null,null,null,null,216]
["",null,null,null,null,null,null,null,null,null,null,null,0,null,null,null,null,null,null,null,null,null,null,null,null,null,null,217]
["",null,null,null,null,null,null,null,null,null,null,null,0,null,null,null,null,null,null,null,null,null,null,null,null,null,null,218]
["",null,null,null,null,null,null,null,null,null,null,null,0,null,null,null,null,null,null,null,null,null,null,null,null,null,null,219]
["",null,null,null,null,null,null,null,null,null,null,null,0,null,null,null,null,null,null,null,null,null,null,null,null,null,null,220]
["",null,null,null,null,null,null,null,null,null,null,null,0,null,null,null,null,null,null,null,null,null,null,null,null,null,null,221]
["",null,null,null,null,null,null,null,null,null,null,null,0,null,null,null,null,null,null,null,null,null,null,null,null,null,null,222]
["",null,null,null,null,null,null,null,null,null,null,null,0,null,null,null,null,null,null,null,null,null,null,null,null,null,null,223]
["",null,null,null,null,null,null,null,null,null,null,null,0,null,null,null,null,null,null,null,null,null,null,null,null,null,null,224]
["",null,null,null,null,null,null,null,null,null,null,null,0,null,null,null,null,null,null,null,null,null,null,null,null,null,null,225]
["",null,null,null,null,null,null,null,null,null,null,null,0,null,null,null,null,null,null,null,null,null,null,null,null,null,null,226]
["",null,null,null,null,null,null,null,null,null,null,null,0,null,null,null,null,null,null,null,null,null,null,null,null,null,null,227]
["",null,null,null,null,null,null,null,null,null,null,null,0,null,null,null,null,null,null,null,null,null,null,null,null,null,null,228]
["",null,null,null,null,null,null,null,null,null,null,null,0,null,null,null,null,null,null,null,null,null,null,null,null,null,null,229]
["",null,null,null,null,null,null,null,null,null,null,null,0,null,null,null,null,null,null,null,null,null,null,null,null,null,null,230]
["",null,null,null,null,null,null,null,null,null,null,null,0,null,null,null,null,null,null,null,null,null,null,null,null,null,null,231]
["",null,null,null,null,null,null,null,null,null,null,null,0,null,null,null,null,null,null,null,null,null,null,null,null,null,null,232]
["",null,null,null,null,null,null,null,null,null,null,null,0,null,null,null,null,null,null,null,null,null,null,null,null,null,null,233]
["",null,null,null,null,null,null,null,null,null,null,null,0,null,null,null,null,null,null,null,null,null,null,null,null,null,null,234]
["",null,null,null,null,null,null,null,null,null,null,null,0,null,null,null,null,null,null,null,null,null,null,null,null,null,null,235]
["",null,null,null,null,null,null,null,null,null,null,null,0,null,null,null,null,null,null,null,null,null,null,null,null,null,null,236]
["",null,null,null,null,null,null,null,null,null,null,null,0,null,null,null,null,null,null,null,null,null,null,null,null,null,null,237]
["",null,null,null,null,null,null,null,null,null,null,null,0,null,null,null,null,null,null,null,null,null,null,null,null,null,null,238]
["",null,null,null,null,null,null,null,null,null,null,null,0,null,null,null,null,null,null,null,null,null,null,null,null,null,null,239]
["",null,null,null,null,null,null,null,null,null,null,null,0,null,null,null,null,null,null,null,null,null,null,null,null,null,null,240]
["",null,null,null,null,null,null,null,null,null,null,null,0,null,null,null,null,null,null,null,null,null,null,null,null,null,null,241]
["",null,null,null,null,null,null,null,null,null,null,null,0,null,null,null,null,null,null,null,null,null,null,null,null,null,null,242]
["",null,null,null,null,null,null,null,null,null,null,null,0,null,null,null,null,null,null,null,null,null,null,null,null,null,null,243]
["",null,null,null,null,null,null,null,null,null,null,null,0,null,null,null,null,null,null,null,null,null,null,null,null,null,null,244]
["",null,null,null,null,null,null,null,null,null,null,null,0,null,null,null,null,null,null,null,null,null,null,null,null,null,null,245]
["",null,null,null,null,null,null,null,null,null,null,null,0,null,null,null,null,null,null,null,null,null,null,null,null,null,null,246]
["",null,null,null,null,null,null,null,null,null,null,null,0,null,null,null,null,null,null,null,null,null,null,null,null,null,null,247]
["",null,null,null,null,null,null,null,null,null,null,null,0,null,null,null,null,null,null,null,null,null,null,null,null,null,null,248]
["",null,null,null,null,null,null,null,null,null,null,null,0,null,null,null,null,null,null,null,null,null,null,null,null,null,null,249]
["",null,null,null,null,null,null,null,null,null,null,null,0,null,null,null,null,null,null,null,null,null,null,null,null,null,null,250]
["",null,null,null,null,null,null,null,null,null,null,null,0,null,null,null,null,null,null,null,null,null,null,null,null,null,null,251]
["",null,null,null,null,null,null,null,null,null,null,null,0,null,null,null,null,null,null,null,null,null,null,null,null,null,null,252]
["",null,null,null,null,null,null,null,null,null,null,null,0,null,null,null,null,null,null,null,null,null,null,null,null,null,null,253]
["",null,null,null,null,null,null,null,null,null,null,null,{"$f":"IF(lang=1,IF(F268=\"X\",K268,IF(F268=\"X\",J268,0)))","v":0},null,null,null,null,null,null,null,null,null,null,null,null,null,null,254]
["",null,null,null,null,null,null,null,null,null,null,null,0,null,null,null,null,null,null,null,null,null,null,null,null,null,null,255]
["",null,null,null,null,null,null,null,null,null,null,null,0,null,null,null,null,null,null,null,null,null,null,null,null,null,null,256]
["",null,null,null,null,null,null,null,null,null,null,null,0,null,null,null,null,null,null,null,null,null,null,null,null,null,null,257]
[{"$f":"IF(AB271+1>totalbusroute,\"\",AB271+1)","v":""},null,null,null,null,null,null,null,null,null,null,null,0,null,null,null,null,null,null,null,null,null,null,null,null,null,null,258]
["",null,null,null,null,null,null,null,null,null,null,null,0,null,null,null,null,null,null,null,null,null,null,null,null,null,null,{"$f":"+AB272+1","v":259}]
["",null,null,null,null,null,null,null,null,null,null,null,0,null,null,null,null,null,null,null,null,null,null,null,null,null,null,260]
["",null,null,null,null,null,null,null,null,null,null,null,0,null,null,null,null,null,null,null,null,null,null,null,null,null,null,261]
["",null,null,null,null,null,null,null,null,null,null,null,0,null,null,null,null,null,null,null,null,null,null,null,null,null,null,262]
["",null,null,null,null,null,null,null,null,null,null,null,0,null,null,null,null,null,null,null,null,null,null,null,null,null,null,263]
["",null,null,null,null,null,null,null,null,null,null,null,0,null,null,null,null,null,null,null,null,null,null,null,null,null,null,264]
["",null,null,null,null,null,null,null,null,null,null,null,0,null,null,null,null,null,null,null,null,null,null,null,null,null,null,265]
["",null,null,null,null,null,null,null,null,null,null,null,0,null,null,null,null,null,null,null,null,null,null,null,null,null,null,266]
["",null,null,null,null,null,null,null,null,null,null,null,0,null,null,null,null,null,null,null,null,null,null,null,null,null,null,267]
["",null,null,null,null,null,null,null,null,null,null,null,0,null,null,null,null,null,null,null,null,null,null,null,null,null,null,268]
["",null,null,null,null,null,null,null,null,null,null,null,0,null,null,null,null,null,null,null,null,null,null,null,null,null,null,269]
["",null,null,null,null,null,null,null,null,null,null,null,0,null,null,null,null,null,null,null,null,null,null,null,null,null,null,270]
["",null,null,null,null,null,null,null,null,null,null,null,0,null,null,null,null,null,null,null,null,null,null,null,null,null,null,271]
["",null,null,null,null,null,null,null,null,null,null,null,0,null,null,null,null,null,null,null,null,null,null,null,null,null,null,272]
["",null,null,null,null,null,null,null,null,null,null,null,0,null,null,null,null,null,null,null,null,null,null,null,null,null,null,273]
["",null,null,null,null,null,null,null,null,null,null,null,0,null,null,null,null,null,null,null,null,null,null,null,null,null,null,274]
["",null,null,null,null,null,null,null,null,null,null,null,0,null,null,null,null,null,null,null,null,null,null,null,null,null,null,275]
["",null,null,null,null,null,null,null,null,null,null,null,0,null,null,null,null,null,null,null,null,null,null,null,null,null,null,276]
["",null,null,null,null,null,null,null,null,null,null,null,0,null,null,null,null,null,null,null,null,null,null,null,null,null,null,277]
["",null,null,null,null,null,null,null,null,null,null,null,0,null,null,null,null,null,null,null,null,null,null,null,null,null,null,278]
["",null,null,null,null,null,null,null,null,null,null,null,0,null,null,null,null,null,null,null,null,null,null,null,null,null,null,279]
["",null,null,null,null,null,null,null,null,null,null,null,0,null,null,null,null,null,null,null,null,null,null,null,null,null,null,280]
["",null,null,null,null,null,null,null,null,null,null,null,0,null,null,null,null,null,null,null,null,null,null,null,null,null,null,281]
["",null,null,null,null,null,null,null,null,null,null,null,0,null,null,null,null,null,null,null,null,null,null,null,null,null,null,282]
["",null,null,null,null,null,null,null,null,null,null,null,0,null,null,null,null,null,null,null,null,null,null,null,null,null,null,283]
["",null,null,null,null,null,null,null,null,null,null,null,0,null,null,null,null,null,null,null,null,null,null,null,null,null,null,284]
["",null,null,null,null,null,null,null,null,null,null,null,0,null,null,null,null,null,null,null,null,null,null,null,null,null,null,285]
["",null,null,null,null,null,null,null,null,null,null,null,0,null,null,null,null,null,null,null,null,null,null,null,null,null,null,286]
["",null,null,null,null,null,null,null,null,null,null,null,0,null,null,null,null,null,null,null,null,null,null,null,null,null,null,287]
["",null,null,null,null,null,null,null,null,null,null,null,0,null,null,null,null,null,null,null,null,null,null,null,null,null,null,288]
["",null,null,null,null,null,null,null,null,null,null,null,0,null,null,null,null,null,null,null,null,null,null,null,null,null,null,289]
["",null,null,null,null,null,null,null,null,null,null,null,0,null,null,null,null,null,null,null,null,null,null,null,null,null,null,290]
["",null,null,null,null,null,null,null,null,null,null,null,0,null,null,null,null,null,null,null,null,null,null,null,null,null,null,291]
["",null,null,null,null,null,null,null,null,null,null,null,0,null,null,null,null,null,null,null,null,null,null,null,null,null,null,292]
["",null,null,null,null,null,null,null,null,null,null,null,0,null,null,null,null,null,null,null,null,null,null,null,null,null,null,293]
["",null,null,null,null,null,null,null,null,null,null,null,0,null,null,null,null,null,null,null,null,null,null,null,null,null,null,294]
["",null,null,null,null,null,null,null,null,null,null,null,0,null,null,null,null,null,null,null,null,null,null,null,null,null,null,295]
["",null,null,null,null,null,null,null,null,null,null,null,0,null,null,null,null,null,null,null,null,null,null,null,null,null,null,296]
["",null,null,null,null,null,null,null,null,null,null,null,0,null,null,null,null,null,null,null,null,null,null,null,null,null,null,297]
["",null,null,null,null,null,null,null,null,null,null,null,0,null,null,null,null,null,null,null,null,null,null,null,null,null,null,298]
["",null,null,null,null,null,null,null,null,null,null,null,0,null,null,null,null,null,null,null,null,null,null,null,null,null,null,299]
["",null,null,null,null,null,null,null,null,null,null,null,0,null,null,null,null,null,null,null,null,null,null,null,null,null,null,300]
["",null,null,null,null,null,null,null,null,null,null,null,0,null,null,null,null,null,null,null,null,null,null,null,null,null,null,301]
["",null,null,null,null,null,null,null,null,null,null,null,0,null,null,null,null,null,null,null,null,null,null,null,null,null,null,302]
["",null,null,null,null,null,null,null,null,null,null,null,0,null,null,null,null,null,null,null,null,null,null,null,null,null,null,303]
["",null,null,null,null,null,null,null,null,null,null,null,0,null,null,null,null,null,null,null,null,null,null,null,null,null,null,304]
["",null,null,null,null,null,null,null,null,null,null,null,0,null,null,null,null,null,null,null,null,null,null,null,null,null,null,305]
["",null,null,null,null,null,null,null,null,null,null,null,0,null,null,null,null,null,null,null,null,null,null,null,null,null,null,306]
["",null,null,null,null,null,null,null,null,null,null,null,0,null,null,null,null,null,null,null,null,null,null,null,null,null,null,307]
["",null,null,null,null,null,null,null,null,null,null,null,0,null,null,null,null,null,null,null,null,null,null,null,null,null,null,308]
["",null,null,null,null,null,null,null,null,null,null,null,0,null,null,null,null,null,null,null,null,null,null,null,null,null,null,309]
["",null,null,null,null,null,null,null,null,null,null,null,0,null,null,null,null,null,null,null,null,null,null,null,null,null,null,310]
["",null,null,null,null,null,null,null,null,null,null,null,0,null,null,null,null,null,null,null,null,null,null,null,null,null,null,311]
["",null,null,null,null,null,null,null,null,null,null,null,0,null,null,null,null,null,null,null,null,null,null,null,null,null,null,312]
["",null,null,null,null,null,null,null,null,null,null,null,0,null,null,null,null,null,null,null,null,null,null,null,null,null,null,313]
["",null,null,null,null,null,null,null,null,null,null,null,0,null,null,null,null,null,null,null,null,null,null,null,null,null,null,314]
["",null,null,null,null,null,null,null,null,null,null,null,0,null,null,null,null,null,null,null,null,null,null,null,null,null,null,315]
["",null,null,null,null,null,null,null,null,null,null,null,0,null,null,null,null,null,null,null,null,null,null,null,null,null,null,316]
["",null,null,null,null,null,null,null,null,null,null,null,0,null,null,null,null,null,null,null,null,null,null,null,null,null,null,317]
["",null,null,null,null,null,null,null,null,null,null,null,{"$f":"IF(lang=1,IF(F332=\"X\",K332,IF(F332=\"X\",J332,0)))","v":0},null,null,null,null,null,null,null,null,null,null,null,null,null,null,318]
["",null,null,null,null,null,null,null,null,null,null,null,0,null,null,null,null,null,null,null,null,null,null,null,null,null,null,319]
["",null,null,null,null,null,null,null,null,null,null,null,0,null,null,null,null,null,null,null,null,null,null,null,null,null,null,320]
["",null,null,null,null,null,null,null,null,null,null,null,0,null,null,null,null,null,null,null,null,null,null,null,null,null,null,321]
[{"$f":"IF(AB335+1>totalbusroute,\"\",AB335+1)","v":""},null,null,null,null,null,null,null,null,null,null,null,0,null,null,null,null,null,null,null,null,null,null,null,null,null,null,322]
["",null,null,null,null,null,null,null,null,null,null,null,0,null,null,null,null,null,null,null,null,null,null,null,null,null,null,{"$f":"+AB336+1","v":323}]
["",null,null,null,null,null,null,null,null,null,null,null,0,null,null,null,null,null,null,null,null,null,null,null,null,null,null,324]
["",null,null,null,null,null,null,null,null,null,null,null,0,null,null,null,null,null,null,null,null,null,null,null,null,null,null,325]
["",null,null,null,null,null,null,null,null,null,null,null,0,null,null,null,null,null,null,null,null,null,null,null,null,null,null,326]
["",null,null,null,null,null,null,null,null,null,null,null,0,null,null,null,null,null,null,null,null,null,null,null,null,null,null,327]
["",null,null,null,null,null,null,null,null,null,null,null,0,null,null,null,null,null,null,null,null,null,null,null,null,null,null,328]
["",null,null,null,null,null,null,null,null,null,null,null,0,null,null,null,null,null,null,null,null,null,null,null,null,null,null,329]
["",null,null,null,null,null,null,null,null,null,null,null,0,null,null,null,null,null,null,null,null,null,null,null,null,null,null,330]
["",null,null,null,null,null,null,null,null,null,null,null,0,null,null,null,null,null,null,null,null,null,null,null,null,null,null,331]
["",null,null,null,null,null,null,null,null,null,null,null,0,null,null,null,null,null,null,null,null,null,null,null,null,null,null,332]
["",null,null,null,null,null,null,null,null,null,null,null,0,null,null,null,null,null,null,null,null,null,null,null,null,null,null,333]
["",null,null,null,null,null,null,null,null,null,null,null,0,null,null,null,null,null,null,null,null,null,null,null,null,null,null,334]
["",null,null,null,null,null,null,null,null,null,null,null,0,null,null,null,null,null,null,null,null,null,null,null,null,null,null,335]
["",null,null,null,null,null,null,null,null,null,null,null,0,null,null,null,null,null,null,null,null,null,null,null,null,null,null,336]
["",null,null,null,null,null,null,null,null,null,null,null,0,null,null,null,null,null,null,null,null,null,null,null,null,null,null,337]
["",null,null,null,null,null,null,null,null,null,null,null,0,null,null,null,null,null,null,null,null,null,null,null,null,null,null,338]
["",null,null,null,null,null,null,null,null,null,null,null,0,null,null,null,null,null,null,null,null,null,null,null,null,null,null,339]
["",null,null,null,null,null,null,null,null,null,null,null,0,null,null,null,null,null,null,null,null,null,null,null,null,null,null,340]
["",null,null,null,null,null,null,null,null,null,null,null,0,null,null,null,null,null,null,null,null,null,null,null,null,null,null,341]
["",null,null,null,null,null,null,null,null,null,null,null,0,null,null,null,null,null,null,null,null,null,null,null,null,null,null,342]
["",null,null,null,null,null,null,null,null,null,null,null,0,null,null,null,null,null,null,null,null,null,null,null,null,null,null,343]
["",null,null,null,null,null,null,null,null,null,null,null,0,null,null,null,null,null,null,null,null,null,null,null,null,null,null,344]
["",null,null,null,null,null,null,null,null,null,null,null,0,null,null,null,null,null,null,null,null,null,null,null,null,null,null,345]
["",null,null,null,null,null,null,null,null,null,null,null,0,null,null,null,null,null,null,null,null,null,null,null,null,null,null,346]
["",null,null,null,null,null,null,null,null,null,null,null,0,null,null,null,null,null,null,null,null,null,null,null,null,null,null,347]
["",null,null,null,null,null,null,null,null,null,null,null,0,null,null,null,null,null,null,null,null,null,null,null,null,null,null,348]
["",null,null,null,null,null,null,null,null,null,null,null,0,null,null,null,null,null,null,null,null,null,null,null,null,null,null,349]
["",null,null,null,null,null,null,null,null,null,null,null,0,null,null,null,null,null,null,null,null,null,null,null,null,null,null,350]
["",null,null,null,null,null,null,null,null,null,null,null,0,null,null,null,null,null,null,null,null,null,null,null,null,null,null,351]
["",null,null,null,null,null,null,null,null,null,null,null,0,null,null,null,null,null,null,null,null,null,null,null,null,null,null,352]
["",null,null,null,null,null,null,null,null,null,null,null,0,null,null,null,null,null,null,null,null,null,null,null,null,null,null,353]
["",null,null,null,null,null,null,null,null,null,null,null,0,null,null,null,null,null,null,null,null,null,null,null,null,null,null,354]
["",null,null,null,null,null,null,null,null,null,null,null,0,null,null,null,null,null,null,null,null,null,null,null,null,null,null,355]
["",null,null,null,null,null,null,null,null,null,null,null,0,null,null,null,null,null,null,null,null,null,null,null,null,null,null,356]
["",null,null,null,null,null,null,null,null,null,null,null,0,null,null,null,null,null,null,null,null,null,null,null,null,null,null,357]
["",null,null,null,null,null,null,null,null,null,null,null,0,null,null,null,null,null,null,null,null,null,null,null,null,null,null,358]
["",null,null,null,null,null,null,null,null,null,null,null,0,null,null,null,null,null,null,null,null,null,null,null,null,null,null,359]
["",null,null,null,null,null,null,null,null,null,null,null,0,null,null,null,null,null,null,null,null,null,null,null,null,null,null,360]
["",null,null,null,null,null,null,null,null,null,null,null,0,null,null,null,null,null,null,null,null,null,null,null,null,null,null,361]
["",null,null,null,null,null,null,null,null,null,null,null,0,null,null,null,null,null,null,null,null,null,null,null,null,null,null,362]
["",null,null,null,null,null,null,null,null,null,null,null,0,null,null,null,null,null,null,null,null,null,null,null,null,null,null,363]
["",null,null,null,null,null,null,null,null,null,null,null,0,null,null,null,null,null,null,null,null,null,null,null,null,null,null,364]
["",null,null,null,null,null,null,null,null,null,null,null,0,null,null,null,null,null,null,null,null,null,null,null,null,null,null,365]

{"sheet":"FB111S Certification","index":5,"n_rows":46,"n_cols":33,"rows_kept":46,"cut":false,"hidden":false,"merged":[[35,3,35,4],[31,3,31,4],[12,2,15,9],[25,2,27,7],[4,2,4,9],[40,3,40,4],[32,3,32,4],[36,3,36,4],[10,5,10,8],[6,2,6,9],[39,3,39,4],[31,6,31,9],[32,6,32,9],[35,6,35,9],[36,6,36,9],[39,6,39,9],[40,6,40,9]]}
[null,null,{"$f":"IF(lang=1,Z1,AA1)","v":"Education Funding Branch "},null,null,null,null,null,null,null,null,null,null,null,null,null,null,null,null,null,null,null,null,null,null,"Education Funding Branch ","Direction du financement de l’éducation"]
[null,null,{"$f":"IF(lang=1,Z2,AA2)","v":"511-1181 Portage Avenue "},null,null,null,null,null,null,null,null,null,null,null,null,null,null,null,null,null,null,null,null,null,null,"511-1181 Portage Avenue ","1181, avenue Portage, bureau 511"]
[null,null,{"$f":"IF(lang=1,Z3,AA3)","v":"Winnipeg, MB R3G 0T3 "},null,null,null,null,null,null,null,null,null,null,null,null,null,null,null,null,null,null,null,null,null,null,"Winnipeg, MB R3G 0T3 ","Winnipeg (Manitoba) R3G 0T3"]
[null,null,"efb@gov.mb.ca"]
[null,null,{"$f":"IF(lang=1,Z5,AA5)","v":"Certification of the Bus Route Summary"},null,null,null,null,null,null,null,null,null,null,null,null,null,null,null,null,null,null,null,null,null,null,"Certification of the Bus Route Summary","Attestation des sommaires des rapports sur les itinéraires d'autobus\n"]
[]
[null,null,{"$f":"VLOOKUP(YEARNUM,YEARTABLE,2)","v":"September 29, 2022"}]
[]
[]
[]
[null,null,null,null,{"$f":"IF(lang=1,Z11,AA11)","v":"SCHOOL DIVISION:"},{"$f":"'FB111S Summary'!A1","v":""},null,null,null,null,null,null,null,null,null,null,null,null,null,null,null,null,null,null,null,"SCHOOL DIVISION:","DIVISION SCOLAIRE :"]
[]
[null,null,{"$f":"IF(lang=1,Z14,AA14)","v":"We hereby certify that  to the best of our knowledge and belief, the following information reported on FB 111S - Bus Route Summary is true and correct and in accordance with the laws and regulations of the Province of Manitoba."}]
[null,null,null,null,null,null,null,null,null,null,null,null,null,null,null,null,null,null,null,null,null,null,null,null,null,"We hereby certify that  to the best of our knowledge and belief, the following information reported on FB 111S - Bus Route Summary is true and correct and in accordance with the laws and regulations of the Province of Manitoba.","Nous attestons que les renseignements fournis dans le présent formulaire FB 111S – Sommaire des rapports sur les itinéraires d’autobus sont, à notre connaissance, véridiques et exacts, conformément aux lois et règlements de la province du Manitoba."]
[null,null,null,null,null,null,null,null,null,null,null,null,null,null,null,null,null,null,null,null,null,null,null,null,null,null,""]
[null,null,null,null,null,null,null,null,null,null,null,null,null,null,null,null,null,null,null,null,null,null,null,null,null,null,""]
[]
[]
[null,null,{"$f":"IF(lang=1,Z19,AA19)","v":"-  Total Kilometres"},null,null,null,null,null,{"$f":"'FB111S Summary'!I13","v":0},null,null,null,null,null,null,null,null,null,null,null,null,null,null,null,null,"-  Total Kilometres","Total des kilomètres"]
[null,null,null,null,null,null,null,null,null,null,null,null,null,null,null,null,null,null,null,null,null,null,null,null,null,null,null,"",null,"","","",""]
[null,null,{"$f":"IF(lang=1,Z21,AA21)","v":"-  Total Loaded Kilometres"},null,null,null,null,null,{"$f":"'FB111S Summary'!K13","v":0},null,null,null,null,null,null,null,null,null,null,null,null,null,null,null,null,"-  Total Loaded Kilometres","Total des kilomètres en charge (DSFM)"]
[null,null,null,null,null,null,null,null,null,null,null,null,null,null,null,null,null,null,null,null,null,null,null,null,null,null,null,"","","","",""]
[null,null,{"$f":"IF(lang=1,Z23,AA23)","v":"-  Total Rural Loaded Kilometres"},null,null,null,null,null,{"$f":"'FB111S Summary'!M13","v":0},null,null,null,null,null,null,null,null,null,null,null,null,null,null,null,null,"-  Total Rural Loaded Kilometres","Total des kilomètres en charge (urbain)"]
[]
[null,null,{"$f":"IF(lang=1,Z25,AA25)","v":"-  Number of Buses Reporting Ridership"},null,null,null,null,null,null,null,null,null,null,null,null,null,null,null,null,null,null,null,null,null,null,"-  Number of Buses Reporting Ridership","Total des kilomètres en charge (rural)"]
[null,null,{"$f":"IF(lang=1,Z26,AA26)","v":"            for Approved Rural Routes"},null,null,null,null,null,{"$f":"'FB111S Summary'!I7","v":0},null,null,null,null,null,null,null,null,null,null,null,null,null,null,null,null,"            for Approved Rural Routes","          Nombre total d'autobus pour les élèves \n          transportés sur les itinéraires approuvés \n          de la DSFM ","","","","","",""]
[]
[null,null,null,null,null,null,null,null,null,null,null,null,null,null,null,null,null,null,null,null,null,null,null,null,null,null,""]
[]
[]
[]
[]
[null,null,null,"DATE",null,null,{"$f":"IF(lang=1,Z33,AA33)","v":"TRANSPORTATION SUPERVISOR"},null,null,null,null,null,null,null,null,null,null,null,null,null,null,null,null,null,null,"TRANSPORTATION SUPERVISOR","SUPERVISEUR DU TRANSPORT"]
[]
[]
[]
[null,null,null,"DATE",null,null,{"$f":"IF(lang=1,Z37,AA37)","v":"SECRETARY - TREASURER"},null,null,null,null,null,null,null,null,null,null,null,null,null,null,null,null,null,null,"SECRETARY - TREASURER","SECRÉTAIRE-TRÉSORIER"]
[]
[]
[]
[null,null,null,"DATE",null,null,{"$f":"IF(lang=1,Z41,AA41)","v":"SUPERINTENDENT"},null,null,null,null,null,null,null,null,null,null,null,null,null,null,null,null,null,null,"SUPERINTENDENT","DIRECTEUR GÉNÉRAL DES ÉCOLES"]
[]
[]
[]
[]
[null,null,null,null,null,null,null,null,null,"FB 111S CERT"]

{"sheet":"DATA","index":6,"n_rows":49,"n_cols":16,"rows_kept":49,"cut":false,"hidden":true,"merged":[]}
["DIVNUM",1,1,"Click here for your School Division =>",null,{"$f":"+DIVNUM","v":1},{"$f":"VLOOKUP($F$1,$F$2:$H$38,2,FALSE)","v":{"$error":"#N/A"}},{"$f":"VLOOKUP($F$1,$F$2:$H$38,3,FALSE)","v":{"$error":"#N/A"}}]
[null,null,2,"Beautiful Plains",null,2,"BE","Beautiful Plains"]
["YEARNUM",1,3,"Border Land",null,{"$f":"+F2+1","v":3},"BO","Border Land"]
[null,null,4,"Brandon",null,{"$f":"+F3+1","v":4},"BR","Brandon"]
[null,null,5,"Evergreen",null,5,"EV","Evergreen"]
[null,null,6,"Flin Flon",null,6,"FL","Flin Flon"]
[null,null,7,"Fort La Bosse",null,7,"FO","Fort La Bosse"]
[null,null,8,"Franco-Manitobaine",null,8,"DI","Franco-Manitobaine"]
[null,null,9,"Frontier",null,9,"FR","Frontier"]
[null,null,10,"Garden Valley",null,10,"GA","Garden Valley"]
[null,null,11,"Hanover",null,11,"HA","Hanover"]
[null,null,12,"Interlake",null,12,"IN","Interlake"]
[null,null,13,"Kelsey",null,13,"KE","Kelsey"]
[null,null,14,"Lakeshore",null,14,"LA","Lakeshore"]
[null,null,15,"Lord Selkirk",null,15,"LO","Lord Selkirk"]
[null,null,16,"Louis Riel",null,16,"LR","Louis Riel"]
[null,null,17,"Mountain View",null,17,"MO","Mountain View"]
[null,null,18,"Mystery Lake",null,18,"MY","Mystery Lake"]
[null,null,19,"Park West",null,19,"PA","Park West"]
[null,null,20,"Pembina Trails",null,20,"PE","Pembina Trails"]
[null,null,21,"Pine Creek",null,21,"PI","Pine Creek"]
[null,null,22,"Portage La Prairie",null,22,"PO","Portage La Prairie"]
[null,null,23,"Prairie Rose",null,23,"PR","Prairie Rose"]
[null,null,24,"Prairie Spirit",null,24,"PS","Prairie Spirit"]
[null,null,25,"Red River Valley",null,25,"RE","Red River Valley"]
[null,null,26,"River East Transcona",null,26,"RI","River East Transcona"]
[null,null,27,"Rolling River",null,27,"RO","Rolling River"]
[null,null,28,"Seine River",null,28,"SE","Seine River"]
[null,null,29,"Seven Oaks",null,29,"SO","Seven Oaks"]
[null,null,30,"Southwest Horizon",null,30,"SR","Southwest Horizon"]
[null,null,31,"St. James-Assiniboia",null,31,"ST","St. James-Assiniboia"]
[null,null,32,"Sunrise",null,32,"SU","Sunrise"]
[null,null,33,"Swan Valley",null,33,"SW","Swan Valley"]
[null,null,34,"Turtle Mountain",null,34,"TM","Turtle Mountain"]
[null,null,35,"Turtle River",null,35,"TR","Turtle River"]
[null,null,36,"Western",null,36,"WE","Western"]
[null,null,37,"Whiteshell",null,37,"XW","Whiteshell"]
[null,null,38,"Winnipeg",null,38,"WI","Winnipeg"]
[]
[null,null,1,{"$f":"IF(lang=1,J40,K40)","v":"September 29, 2022"},{"$f":"IF(lang=1,O40,P40)","v":"(2016/2017)"},null,null,null,null,"September 29, 2022","Au 29 Septembre 2022",null,null,null,"(2016/2017)","(2016 - 2017)"]
[null,null,2,"September 29, 2023","(2017/2018)",null,null,null,null,"September 29, 2023","Au 29 Septembre 2023",null,null,null,"(2017/2018)","(2017 - 2018)"]
[null,null,3,"September 29, 2024","(2018/2019)",null,null,null,null,"September 29, 2024","Au 29 Septembre 2024",null,null,null,"(2018/2019)","(2018 - 2019)"]
[null,null,4,"September 29, 2025","(2019/2020)",null,null,null,null,"September 29, 2025","Au 29 Septembre 2025",null,null,null,"(2019/2020)","(2019 - 2020)"]
[null,null,5,"September 29, 2026","(2020/2021)",null,null,null,null,"September 29, 2026","Au 29 Septembre 2026",null,null,null,"(2020/2021)","(2020 - 2021)"]
[null,null,6,"September 29, 2027","(2021/2022)",null,null,null,null,"September 29, 2027","Au 29 Septembre 2027",null,null,null,"(2021/2022)","(2021 - 2022)"]
[null,null,7,null,null,null,null,null,null,null,null,null,null,null,"(2022/2023)","(2022 - 2023)"]
[null,null,8,null,null,null,null,null,null,null,null,null,null,null,"(2023/2024)","(2023 - 2024)"]
[null,null,9,null,null,null,null,null,null,null,null,null,null,null,"(2024/2025)","(2024 - 2025)"]
[null,null,10,null,null,null,null,null,null,null,null,null,null,null,"(2025/2026)","(2025 - 2026)"]

{"sheet":"Routes","index":7,"n_rows":44,"n_cols":5,"rows_kept":44,"cut":false,"hidden":true,"merged":[]}
[]
[]
[]
[null,null,"Total","add"]
["Div","School Division","Routes",20,"original"]
["BE","Beautiful Plains",{"$f":"+E6+$D$5","v":50},null,30]
["BO","Border Land ",{"$f":"+E7+$D$5","v":60},null,40]
["BR","Brandon",110,null,90]
["DI","D.S.F.M.",180,null,160]
["EV","Evergreen",50,null,30]
["FL","Flin Flon",30,null,10]
["FO","Fort La Bosse",55,null,35]
["FR","Frontier",100,null,80]
["GA","Garden Valley",95,null,75]
["HA","Hanover ",160,null,140]
["IN","Interlake",60,null,40]
["KE","Kelsey",30,null,10]
["LA","Lakeshore",60,null,40]
["LO","Lord Selkirk",85,null,65]
["LR","Louis Riel",160,null,140]
["MO","Mountain View",65,null,45]
["MY","Mystery Lake",20,null,0]
["PA","Park West",60,null,40]
["PE","Pembina Trails",90,null,70]
["PI","Pine Creek",50,null,30]
["PO","Portage La Prairie",50,null,30]
["PR","Prairie Rose",70,null,50]
["PS","Prairie Spirit",75,null,55]
["RE","Red River Valley",75,null,55]
["RI","River East Transcona",330,null,310]
["RO","Rolling River",60,null,40]
["SE","Seine River",90,null,70]
["SO","Seven Oaks",130,null,110]
["SR","Southwest Horizon",60,null,40]
["ST","St. James-Assiniboia",68,null,48]
["SU","Sunrise",125,null,105]
["SW","Swan Valley",55,null,35]
["TM","Turtle Mountain",50,null,30]
["TR","Turtle River ",55,null,35]
["WE","Western",45,null,25]
["WI","Winnipeg",185,null,165]
["XW","Whiteshell",20,null,0]
[]
[{"$f":"+DATA!G1","v":{"$error":"#N/A"}},{"$f":"+DATA!H1","v":{"$error":"#N/A"}},{"$f":"IF(ISNA(VLOOKUP(A44,A6:C42,3,FALSE))=TRUE,31,VLOOKUP(A44,A6:C42,3,FALSE))","v":31}]